Cogmind - Beta 13 *** ADVENTURER MODE // 2024.04.16 @ 12:12:21 Player: Ash Result: Destroyed by EI-23C(R) with Subdweller Shrapnel Launcher Performance ------------- Evolutions (0) 0 Regions Visited (3) 600 Robots Destroyed (9) 45 Value Destroyed (216) 216 Prototype IDs (0) 0 Alien Tech Used (0) 0 Bonus (0) 0 TOTAL SCORE: 861 Bonus ------- None Cogmind --------- Core Integrity 0/250 Matter 280/300 Energy 100/100 System Corruption 0% Temperature Cool (0) Movement Walking (120) Location -10/Subcaves Parts ------- > --- POWER (1) -------- (None) > --- PROPULSION (2) --- Carbon-fiber Leg Myomer Leg > --- UTILITY (2) ------ (None) > --- WEAPON (2) ------- Heavy Battle Rifle Dirty Datajack > --- INVENTORY (5) ---- Flight Unit Flight Unit Flight Unit Peak State ------------ > --- POWER ------------ Light Angular Momentum Engine > --- PROPULSION ------- Carbon-fiber Leg Myomer Leg > --- UTILITY ---------- Scrap Shield > --- WEAPON ----------- Heavy Battle Rifle Dirty Datajack > --- INVENTORY -------- Flight Unit Flight Unit Flight Unit [Rating: 29] Favorites ----------- Power Light Ion Engine Engine Light Ion Engine Propulsion Compact Wheel Leg Myomer Leg Wheel Compact Wheel Utility Small Storage Unit Device Terrain Scanner Storage Small Storage Unit Protection Scrap Shield Weapon Heavy Battle Rifle Energy Gun EM Pulse Gun Ballistic Gun Heavy Battle Rifle Special Weapon Mining Laser Special Melee Weapon Dirty Datajack Build | -11 -10 -10 -10 ------- Run | Yrd Mat Min Sub Slots Evolved . | . . . . Power . | . . . . Propulsion . | . . . . Utility . | . . . . Weapon . | . . . . Parts Attached 18 | 4 3 4 7 Power 4 | 1 . 1 2 Engine 4 | 1 . 1 2 Core . | . . . . Reactor . | . . . . Propulsion 4 | 2 . . 2 Treads . | . . . . Leg 2 | . . . 2 Wheel 2 | 2 . . . Hover . | . . . . Flight . | . . . . Utility 4 | 1 1 . 2 Device 2 | . 1 . 1 Storage 1 | 1 . . . Processor . | . . . . Hackware . | . . . . Protection 1 | . . . 1 Artifact . | . . . . Weapon 6 | . 2 3 1 Energy Gun 2 | . 2 . . Energy Cannon . | . . . . Ballistic Gun 1 | . . 1 . Ballistic Cannon . | . . . . Launcher . | . . . . Special Weapon 2 | . . 2 . Impact Weapon . | . . . . Slashing Weapon . | . . . . Piercing Weapon . | . . . . Special Melee Weapon 1 | . . . 1 Unidentified Prototypes . | . . . . Parts Lost 5 | . . 1 4 Power 3 | . . 1 2 Propulsion . | . . . . Utility 1 | . . . 1 Weapon 1 | . . . 1 Highest Loss Streak 2 | . . 1 2 To Critical Strikes . | . . . . Average Slot Usage (%) 92 | . 96 97 87 Engine 12 | . 14 11 13 Leg 9 | . . . 19 Wheel 18 | . 28 28 8 Device 11 | . 10 14 9 Storage 12 | . 14 14 9 Protection 1 | . . . 3 Energy Gun 5 | . 28 . . Ballistic Gun 9 | . . 7 14 Special Weapon 8 | . . 19 3 Special Melee Weapon 2 | . . . 4 Naked Turns . | . . . . Heaviest Build 32 | 8 13 14 32 Greatest Support 40 | 32 32 32 40 Greatest Overweight (x) . | . . . . Average Overweight (x) . | . . . . Largest Inventory Capacity 8 | 8 8 8 8 Average Capacity 7 | 7 8 8 7 Most Carried 8 | 4 4 8 8 Average Carried 5 | 1 1 6 6 Final Capacity 8 | 8 8 8 5 Final Carried 8 | 2 4 8 3 Class Distribution -------------------- 82% | Mutant 17% | Scavenger-Mutant Dominant Class ---------------- Mutant | -10/Materials Mutant | -10/Mines Mutant | -10/Subcaves Resources | -11 -10 -10 -10 ----------- Run | Yrd Mat Min Sub Matter Collected 400 | 219 . 110 71 Remotely . | . . . . Salvage Created 150 | . . 70 80 Parts 13 | . . 10 3 Haulers Intercepted . | . . . . Recyclers Shooed . | . . . . Parts Field Recycled . | . . . . Retrieved Matter . | . . . . Parts Self-Destructed . | . . . . Prevented . | . . . . Kills | -11 -10 -10 -10 ------- Run | Yrd Mat Min Sub Combat Hostiles Destroyed 9 | . . 7 2 Guns 7 | . . 5 2 Cannons 2 | . . 2 . Classes Destroyed 4 | . . 2 2 Swarmer 5 | . . 5 . Grunt 2 | . . 2 . Sentry 1 | . . . 1 Subdweller 1 | . . . 1 Best Kill Streak 2 | . . 2 1 Combat Bots Only 2 | . . 2 1 Max Kills in Single Turn 1 | . . 1 1 Gunslinging . | . . . . Exploded . | . . . . Melee . | . . . . Uniques/NPCs Destroyed . | . . . . Combat | -11 -10 -10 -10 -------- Run | Yrd Mat Min Sub Hostile Shots Fired 82 | . 2 43 37 Missed 26 | . 1 13 12 Damage Taken 965 | . 8 230 727 Core 259 | . . 57 202 Absorbed by Shields . | . . . . Ignored by Resistances 279 | . 2 72 205 Core Remaining (%) 100 | 100 . . . Volleys Fired 31 | . . 22 9 Largest 2 | . . 2 1 Hottest 200 | . . 200 100 Shots Fired 32 | . . 23 9 Gun 20 | . . 12 8 Cannon . | . . . . Launcher . | . . . . Special 12 | . . 11 1 Kinetic 20 | . . 12 8 Thermal 12 | . . 11 1 Explosive . | . . . . Electromagnetic . | . . . . Robot Hit Streak 11 | . . 6 11 Robot Miss Streak 7 | . . 7 . Penetration Max . | . . . . Secondary Targets . | . . . . Shots Hit Robots 23 | . . 15 8 Core Hits 9 | . . 7 2 Critical Kills . | . . . . Critical Parts Destroyed . | . . . . Critical Strikes . | . . . . Melee Attacks . | . . . . Impact . | . . . . Slashing . | . . . . Piercing . | . . . . Sneak Attacks . | . . . . Combat Hostiles . | . . . . Follow-up Attacks . | . . . . Damage Inflicted 503 | . . 323 180 Guns 359 | . . 179 180 Cannons . | . . . . Explosions . | . . . . Melee . | . . . . Ramming . | . . . . Kinetic 359 | . . 179 180 Thermal 144 | . . 144 . Explosive . | . . . . Electromagnetic . | . . . . Impact . | . . . . Slashing . | . . . . Piercing . | . . . . Highest Corruption . | . . . . Average Corruption . | . . . . Corruption Purged . | . . . . Corruption Blocked . | . . . . Overload Shots . | . . . . Overflow Damage . | . . . . Projectiles . | . . . . Explosions . | . . . . Melee . | . . . . Knockbacks . | . . . . Impact . | . . . . Kinetic . | . . . . Secondary . | . . . . Self-Inflicted Damage . | . . . . Shots . | . . . . Rammed . | . . . . Targets Rammed . | . . . . Kicked . | . . . . Crushed . | . . . . Highest Temperature 173 | . . 173 7 Average Temperature 76 | . . 78 7 Received Heat Transfer 126 | . 6 69 51 Siege Activations . | . . . . Robots Corrupted . | . . . . Combat Hostiles . | . . . . Parts Fried . | . . . . Impact Corruptions . | . . . . Robots Melted . | . . . . Combat Hostiles . | . . . . Parts Melted . | . . . . Heat Transferred 300 | . . 300 . Parts Sabotaged . | . . . . Parts Stolen . | . . . . Parts Stripped . | . . . . Power Chain Reactions . | . . . . Alert | -11 -10 -10 -10 ------- Run | Yrd Mat Min Sub Peak Influence 243 | . 59 243 . Initial 19 | . . 19 . Average 74 | . 23 112 . Maximum Alert Level 1 | . . 1 . Low Security (%) 93 | 100 100 89 . Level 1 6 | . . 10 . Level 2 . | . . . . Level 3 . | . . . . Level 4 . | . . . . Level 5 . | . . . . High Security . | . . . . Max Security . | . . . . Squads Dispatched 1 | . 1 . . Investigation 1 | . 1 . . Extermination . | . . . . Reinforcement . | . . . . Assault . | . . . . Garrison . | . . . . Intercept . | . . . . Searches Triggered . | . . . . Construction Impeded . | . . . . Haulers Reinforced . | . . . . Active Scanning Responses . | . . . . Cargo Convoy Interrupts . | . . . . Stealth | -11 -10 -10 -10 --------- Run | Yrd Mat Min Sub Distress Signals . | . . . . Communications Jammed . | . . . . Distress Signals . | . . . . Times Spotted 32 | . 8 13 11 Peak Tracking Total 8 | . 8 3 3 Tactical Retreats 4 | . 1 2 1 Traps | -11 -10 -10 -10 ------- Run | Yrd Mat Min Sub Traps Triggered 1 | . 1 . . Indirectly . | . . . . Trap Hack Attempts . | . . . . Triggered . | . . . . Disarmed . | . . . . Reprogrammed . | . . . . Reused . | . . . . Traps Extracted . | . . . . Installed . | . . . . Triggered . | . . . . Machines | -11 -10 -10 -10 ---------- Run | Yrd Mat Min Sub Machines Disabled . | . . . . Max in Single Turn . | . . . . Machines Repaired . | . . . . Machines Dismantled . | . . . . Machines Sabotaged . | . . . . Overloaded Fab Kills . | . . . . Hacking | -11 -10 -10 -10 --------- Run | Yrd Mat Min Sub Machines Accessed 3 | . 3 . . Terminals 3 | . 3 . . Fabricators . | . . . . Repair Stations . | . . . . Recycling Units . | . . . . Scanalyzers . | . . . . Garrison Access . | . . . . Total Hacks 12 | . 12 . . Successful 7 | . 7 . . Failed 5 | . 5 . . Catastrophic 2 | . 2 . . Database Lockouts . | . . . . Manual 7 | . 7 . . Terminals 12 | . 12 . . Fabricators . | . . . . Repair Stations . | . . . . Recycling Units . | . . . . Scanalyzers . | . . . . Garrison Access . | . . . . Terminal Hacks 5 | . 5 . . Record 1 | . 1 . . Robot Analysis 2 | . 2 . . Branch Access Points 1 | . 1 . . Zone Layout 1 | . 1 . . Fabricator Hacks . | . . . . Repair Station Hacks . | . . . . Recycling Unit Hacks . | . . . . Scanalyzer . | . . . . Garrison Access Hacks . | . . . . Unauthorized Hacks 2 | . 2 . . Terminals 2 | . 2 . . Botnet 2 | . 2 . . Fabricators . | . . . . Repair Stations . | . . . . Recycling Units . | . . . . Scanalyzers . | . . . . Garrison Access . | . . . . Data Cores Recovered . | . . . . Used . | . . . . Hacking Detections 3 | . 3 . . Full Trace Events . | . . . . Feedback Events . | . . . . Feedback Blocked . | . . . . Robot Schematics Acquired . | . . . . Robots Built . | . . . . Authchips . | . . . . Time . | . . . . Total Robot Build Rating . | . . . . Part Schematics Acquired . | . . . . Parts Built . | . . . . Authchips . | . . . . Time . | . . . . Total Part Build Rating . | . . . . Parts Repaired . | . . . . Time . | . . . . Parts Recycled . | . . . . Recycled Matter . | . . . . Retrieved Matter . | . . . . Retrieved Components . | . . . . Parts Scanalyzed . | . . . . Part Schematics Acquired . | . . . . Parts Damaged . | . . . . Bothacking | -11 -10 -10 -10 ------------ Run | Yrd Mat Min Sub Used RIF Installer . | . . . . Robots Hacked . | . . . . Non-combat . | . . . . Combat . | . . . . Robot Hacks Applied . | . . . . Relay Couplers Released . | . . . . Fabnet Peak Effective % . | . . . . Robots Rewired . | . . . . Allies Hacked . | . . . . Hacks Repelled . | . . . . Allies | -11 -10 -10 -10 -------- Run | Yrd Mat Min Sub Total Allies . | . . . . Largest Group . | . . . . Highest-Rated Group . | . . . . Highest-Rated Ally . | . . . . Total Orders . | . . . . Ally Attacks . | . . . . Total Damage . | . . . . Kills . | . . . . Allies Corrupted . | . . . . Allies Melted . | . . . . Intel | -11 -10 -10 -10 ------- Run | Yrd Mat Min Sub Robot Analysis Total 2 | . 2 . . Derelict Logs Recovered 1 | . . 1 . Drone Launches . | . . . . Drone Recoveries . | . . . . Exploration | -11 -10 -10 -10 ------------- Run | Yrd Mat Min Sub Turns Passed 1079 | 35 202 345 497 Spaces Moved 876 | 31 195 261 389 Core 11 | 11 . . . Treads . | . . . . Legs 276 | . . . 276 Wheels 589 | 20 195 261 113 Hover . | . . . . Flight . | . . . . Fastest Speed 50 | 50 100 100 100 Average Speed 105 | 82 100 100 114 Slowest Speed 120 | 100 100 100 120 Overloaded Moves . | . . . . Propulsion Burnouts . | . . . . Robots Hopped . | . . . . Cave-ins Triggered . | . . . . Exploration Rate (%) 36 | 3 54 58 29 Regions Visited 3 Branch Regions 2 Pre-discovered Areas 1 | . . . 1 Known Exits Taken 1 | . 1 . . Unknown Exits Taken 2 | 1 . 1 . Scrap Searched 2 | . . 2 . Spaces Dug . | . . . . Terrain Destroyed 5 | . . 5 . Melee . | . . . . Projectile 5 | . . 5 . AOE . | . . . . Terrain Rammed . | . . . . Walls Destroyed . | . . . . Machines Disabled . | . . . . Actions | -11 -10 -10 -10 --------- Run | Yrd Mat Min Sub Total 977 | 40 202 300 435 Wait 17 | . . 3 14 Move 873 | 30 194 260 389 Hop . | . . . . Pick Up 23 | 6 5 8 4 Fast Attach 4 | . . . 4 Attach 11 | 4 3 1 3 Detach . | . . . . Swap 3 | . . 3 . Drop 15 | . . 3 12 Fire 31 | . . 22 9 Melee . | . . . . Ram . | . . . . Kick . | . . . . Crush . | . . . . Escape Stasis . | . . . . Rewire . | . . . . Trap . | . . . . Miscellaneous . | . . . . Route ------- -11/Scrapyard -10/Materials (discovered 2 exits: [*Mat] / *Min) -10/Mines -10/Subcaves History --------- Turn | Location | Event 15 | -11/Scrapyard | Discovered new exit (range 16) 36 | -11/Scrapyard | Entered Materials 109 | -10/Materials | Discovered new exit (range 16) 126 | -10/Materials | Identified exit to Mines 238 | -10/Materials | Entered Mines 252 | -10/Mines | Met a Derelict bent on vengeance 304 | -10/Mines | Build established: Mutant 328 | -10/Mines | Learned Materials security intel 393 | -10/Mines | A weapon hastily lodged in a ceiling crevice suddenly fell to the ground 577 | -10/Mines | Discovered new exit (range 6) 583 | -10/Mines | Entered Subcaves 611 | -10/Subcaves | Learned location of Zion (-6) 611 | -10/Subcaves | Met a Zionite searching for "candidates" 650 | -10/Subcaves | A swath of the cavern ceiling suddenly collapsed 691 | -10/Subcaves | Ambushed by swarm of Subdwellers 747 | -10/Subcaves | Lost 4 allies 901 | -10/Subcaves | Core integrity fell below 50% 1055 | -10/Subcaves | Core integrity fell below 20% 1080 | -10/Subcaves | Destroyed by EI-23C(R) with Subdweller Shrapnel Launcher Last Messages --------------- 00733_ Acquired Sub. Optics. 00734_ Dropped Datajack. 00737_ Acquired Dirty Datajack. 00739_ Acquired 43 matter. 00742_ Subatomizers dissect the Sub. Monowheel. 00743_ Dropped Com. Wheel. 00743_ Acquired Carbon-fiber Leg. 00746_ Dropped Neutrino Core. 00747_ Acquired Lgt. Angular Momentum Engine. 00796_ Critical hit (Burn: +37). 00806_ Y-45 Defender destroyed. 00811_ Acquired 28 matter. 3Y-06N(R) emerges from concealment. 00900_ Lgt. Angular Momentum Engine destroyed. 00930_ Dropped Flight Unit. 00931_ Dropped Sml. Storage Unit. 00932_ Dropped Sub. Optics. 00951_ Subatomizers dissect the Battle Rifle. 01054_ Scrap Shield destroyed. 01071_ Lgt. Angular Momentum Engine destroyed. Map ----- +----------------------------------------------------+ | ?????????????????????????????????????????????????? | | ?????????????????????????????????????????????????? | | ??????????????????????????????????###????????????? | | ???????????????????????????????#### ##???????????? | | ??????????????????????????????## ## #???????????# | | ??????????????????????????????# #???????????# | | ??????????????????????????????# ######???###?# | | ??????????????????????????##### #??## ### | | ??????????????????????????# #??# | | ???????????????????????????# #??# | | ???????????????????????????#### #### | | ??????????????????????????#??## # ### | | ??????????????????????????# ## #?? | | ??????????????????????????# ##? | | ??????????????????????????# ### ## | | ?????????????????????????# ## #?? # | | ?????????????????????????# #?### ### ### | | ????????????????????###??# #????# ##?####% # | | ?????????????######## #??###????## #?????# # | | ?????????????#;;;# ; ;########### #?????# ## | | ????????????##; ; ;;;# # ## ##?????# ##? | | ????????????#; #???### ### | | ????????????# # # ##??## ^ | | ??????????### #### ##?# | | ??????????#"" ## #### | | ??????????##" @ R #?# | | ???????????#" ; ### | | ???????????## ; ; ### ###### | | ????????????##; ;;##### #????## | | ?????????????#;; ;#### ##????# | | ?????????????### " "### ###??### | | ?????????????? "##""" #### | | ?????????????"""""" ####### | | ????????????" " " ##?????# # | | ????????????" " "##??????## ## ###### | | ????????????#######?????????####### #####????? | | ??????????????????????????????????#######????????? | | ?????????????????????????????????????????????????? | | ?????????????????????????????????????????????????? | | ?????????????????????????????????????????????????? | | ?????????????????????????????????????????????????? | | ?????????????????????????????????????????????????? | | ?????????????????????????????????????????????????? | | ?????????????????????????????????????????????????? | | ?????????????????????????????????????????????????? | | ?????????????????????????????????????????????????? | | ?????????????????????????????????????????????????? | | ?????????????????????????????????????????????????? | | ?????????????????????????????????????????????????? | | ?????????????????????????????????????????????????? | +----------------------------------------------------+ Best States ------------- Heat Dissipation 25 Energy Generation 18 Energy Capacity 150 Matter Stores 300 Matter Capacity 300 Sight Range 21 Terrain Scan Range 14 Terrain Scan Density 10 Armor Coverage 800 Resistance: KI 20 Resistance: TH 20 Resistance: EX 20 Resistance: EM 20 Resistance: I 20 Resistance: S 20 Resistance: P 20 Evasion (%) 55 Offensive Hacking 10 Item Schematics ----------------- None Robot Schematics ------------------ None Fabricated ------------ Nothing Alien Tech Used ----------------- None Achievements -------------- None Challenges ------------ None Game ------ Seed SpliceBehemothSpecial Manual? 0 Play Time 00:20:30 Cumulative 30.0 hours Start 2024.04.16 @ 11:53:13 End 2024.04.16 @ 12:12:21 Sessions 1 Manual Loads 0 Difficulty Adventurer Special Mode None Game No. 32 Rogue 2 Adventurer 30 Explorer 0 Win Type - Total 1 Types 1/0/0/0/0/0/0/0/0 Lore% 38 Gallery% 31 Achievement% 37 Wizard Run 0 Options --------- Layout 0 ASCII 0 Keyboard 0 Movement Numpad Keybinds 0 Fullscreen 1 Font 24/Smallcaps Map View 76x50 Zoom Use 0% Tactical HUD 1 Map Filters NONE Filters NONE Steam 1 RUN: d967f4b5-cac8-42ad-a956-3e76659fed23